Cogmind - Beta 16 @@@ ROGUE MODE // 2025.12.10 @ 18:23:51 Player: Scringis Result: Destroyed by S-10 Pest with Light Assault Rifle Performance ------------- Evolutions (0) 0 Regions Visited (1) 200 Robots Destroyed (13) 65 Value Destroyed (290) 290 Prototype IDs (0) 0 Alien Tech Used (0) 0 Bonus (0) 0 TOTAL SCORE: 555 Bonus ------- None Cogmind --------- Core Integrity 0/250 Matter 297/300 Energy 99/100 System Corruption 0% Temperature Cool (0) Movement Rolling (100) Location -10/Materials Parts ------- > --- POWER (1) -------- (None) > --- PROPULSION (2) --- Light Treads Compact Wheel > --- UTILITY (2) ------ Heat Sink Small Storage Unit > --- WEAPON (2) ------- Small Laser Light Assault Rifle > --- INVENTORY (8) ---- Light Ion Engine Light Treads Small Laser Small Laser Peak State ------------ > --- POWER ------------ Ion Engine > --- PROPULSION ------- Light Treads Light Treads > --- UTILITY ---------- Heat Sink Small Storage Unit > --- WEAPON ----------- Small Laser Small Laser > --- INVENTORY -------- Light Ion Engine Compact Wheel Small Laser [Rating: 7] Favorites ----------- Power Light Ion Engine Engine Light Ion Engine Propulsion Compact Wheel Treads Light Treads Wheel Compact Wheel Utility Small Storage Unit Device Heat Sink Storage Small Storage Unit Weapon Assault Rifle Energy Gun Small Laser Ballistic Gun Assault Rifle Build | -11 -10 ------- Run | Yrd Mat Slots Evolved . | . . Power . | . . Propulsion . | . . Utility . | . . Weapon . | . . Parts Attached 13 | 6 7 Power 2 | 1 1 Engine 2 | 1 1 Core . | . . Reactor . | . . Propulsion 4 | 2 2 Treads 2 | . 2 Leg . | . . Wheel 2 | 2 . Hover . | . . Flight . | . . Utility 2 | 1 1 Device 1 | . 1 Storage 1 | 1 . Processor . | . . Hackware . | . . Protection . | . . Artifact . | . . Weapon 5 | 2 3 Energy Gun 2 | . 2 Energy Cannon . | . . Ballistic Gun 3 | 2 1 Ballistic Cannon . | . . Launcher . | . . Special Weapon . | . . Impact Weapon . | . . Slashing Weapon . | . . Piercing Weapon . | . . Special Melee Weapon . | . . Unidentified Prototypes . | . . Parts Lost 5 | . 5 Power 2 | . 2 Propulsion 1 | . 1 Utility . | . . Weapon 2 | . 2 Highest Loss Streak 4 | . 4 To Critical Strikes . | . . Average Backups 3 | 2 3 Power 1 | . 1 Propulsion 1 | 2 1 Utility . | . . Weapon . | . . Tool/Special . | . . Unused Backups 2 | . 2 Power 1 | . 1 Propulsion . | . . Utility . | . . Weapon 1 | . 1 Tool/Special . | . . Average Slot Usage (%) 87 | . 87 Engine 13 | . 13 Treads 10 | . 10 Wheel 16 | . 16 Device 6 | . 6 Storage 14 | . 14 Energy Gun 7 | . 7 Ballistic Gun 17 | . 17 Peak Build Rating 7 | 6 7 Average Rating 5 | 3 6 On Entrance 3 | . 6 Avg Prop Armor Cover (%) 14 | . 14 Naked Turns . | . . Heaviest Build 13 | 12 13 Greatest Support 40 | 26 40 Greatest Overweight (x) . | . . Average Overweight (x) . | . . Largest Inventory Capacity 8 | 8 8 Average Capacity 7 | 7 8 Most Carried 5 | 5 5 Average Carried 3 | 3 3 Final Capacity 8 | 8 8 Final Carried 4 | 3 4 Class Distribution -------------------- 52% | Mutant 47% | Scavenger-Mutant Dominant Class ---------------- Scavenger-Mutant | -10/Materials Resources | -11 -10 ----------- Run | Yrd Mat Matter Collected 465 | 227 238 Remotely . | . . Salvage Created 371 | . 371 Parts 18 | . 18 Haulers Intercepted 1 | . 1 Recyclers Shooed . | . . Parts Field Recycled . | . . Retrieved Matter . | . . Parts Self-Destructed . | . . Prevented . | . . Parts Restored . | . . Kills | -11 -10 ------- Run | Yrd Mat Combat Hostiles Destroyed 12 | . 12 Guns 12 | . 12 Classes Destroyed 3 | . 3 Hauler 1 | . 1 Swarmer 5 | . 5 Grunt 7 | . 7 Best Kill Streak 4 | . 4 Combat Bots Only 4 | . 4 Max Kills in Single Turn 1 | . 1 Gunslinging . | . . Exploded . | . . Melee . | . . Uniques/NPCs Destroyed . | . . Combat | -11 -10 -------- Run | Yrd Mat Hostile Shots Fired 101 | . 101 Missed 19 | . 19 Hits 82 | . 82 Projectile 82 | . 82 Damage Taken 827 | . 827 Core 256 | . 256 Absorbed by Shields . | . . Core Remaining (%) 100 | 100 . Volleys Fired 39 | . 39 Largest 2 | . 2 Hottest 80 | . 80 Shots Fired 76 | . 76 Gun 76 | . 76 Cannon . | . . Launcher . | . . Special . | . . Kinetic 56 | . 56 Thermal 20 | . 20 Explosive . | . . Electromagnetic . | . . Robot Hit Streak 16 | . 16 Robot Miss Streak 3 | . 3 Penetration Max . | . . Secondary Targets 7 | . 7 Max Gunslinging Chain 1 | . 1 Shots Hit Robots 55 | . 55 Core Hits 23 | . 23 Critical Kills . | . . Critical Parts Destroyed . | . . Critical Strikes . | . . Melee Attacks . | . . Impact . | . . Slashing . | . . Piercing . | . . Sneak Attacks . | . . Combat Hostiles . | . . Follow-up Attacks . | . . Damage Inflicted 648 | . 648 Guns 646 | . 646 Cannons . | . . Explosions . | . . Melee . | . . Ramming 2 | . 2 Kinetic 516 | . 516 Thermal 130 | . 130 Explosive . | . . Electromagnetic . | . . Impact . | . . Slashing . | . . Piercing . | . . Highest Corruption . | . . Average Corruption . | . . Corruption Purged . | . . Corruption Blocked . | . . Overload Shots . | . . Overflow Damage . | . . Projectiles . | . . Explosions . | . . Melee . | . . Knockbacks . | . . Impact . | . . Kinetic . | . . Secondary . | . . Self-Inflicted Damage . | . . Shots . | . . Rammed 2 | . 2 Targets Rammed 2 | . 2 Kicked . | . . Crushed . | . . Highest Temperature 18 | . 18 Average Temperature 8 | . 8 Received Heat Transfer 354 | . 354 Siege Activations . | . . Martial Activations . | . . Shielding Activations . | . . Robots Disrupted . | . . Combat Hostiles . | . . Robots Corrupted . | . . Combat Hostiles . | . . Parts Fried . | . . Impact Corruptions . | . . Robots Melted . | . . Combat Hostiles . | . . Parts Melted . | . . Heat Transferred 300 | . 300 Parts Sabotaged . | . . Parts Stolen . | . . Parts Stripped . | . . Power Chain Reactions . | . . Alert | -11 -10 ------- Run | Yrd Mat Maximum Alert Level . | . . Low Security (%) 100 | 100 100 Level 1 . | . . Level 2 . | . . Level 3 . | . . Level 4 . | . . Level 5 . | . . High Security . | . . Max Security . | . . Peak Influence 178 | . 178 Initial . | . . Average 70 | . 80 Influence Increases 358 | . 358 Destroy 0b10 Robot/C 240 | . 240 Destroy 0b10 Robot/NC 5 | . 5 Destroy Leader 42 | . 42 Successful Hack 11 | . 11 Lose Combat Pursuer 60 | . 60 Influence Decreases 180 | . 180 Time Decay 130 | . 130 Lost Part 50 | . 50 Squads Dispatched 2 | . 2 Investigation 1 | . 1 Extermination . | . . Reinforcement 1 | . 1 Assault . | . . Garrison . | . . Intercept . | . . Searches Triggered . | . . Construction Impeded . | . . Haulers Reinforced . | . . Active Scanning Responses . | . . Cargo Convoy Interrupts . | . . Stealth | -11 -10 --------- Run | Yrd Mat Distress Signals 2 | . 2 Communications Jammed . | . . Distress Signals . | . . Times Spotted 21 | . 21 Peak Tracking Total 6 | . 6 Tactical Retreats 2 | . 2 Traps | -11 -10 ------- Run | Yrd Mat Traps Triggered . | . . Indirectly . | . . Trap Hack Attempts . | . . Triggered . | . . Disarmed . | . . Reprogrammed . | . . Reused . | . . Traps Extracted . | . . Installed . | . . Triggered . | . . Machines | -11 -10 ---------- Run | Yrd Mat Machines Disabled . | . . Max in Single Turn . | . . Machines Repaired . | . . Machines Dismantled . | . . Machines Sabotaged . | . . Overloaded Fab Kills . | . . Hacking | -11 -10 --------- Run | Yrd Mat Machines Accessed 3 | . 3 Terminals 3 | . 3 Fabricators . | . . Repair Stations . | . . Recycling Units . | . . Scanalyzers . | . . Garrison Access . | . . Total Hacks 10 | . 10 Successful 4 | . 4 Failed 6 | . 6 Catastrophic . | . . Database Lockouts . | . . Manual 10 | . 10 Terminals 10 | . 10 Fabricators . | . . Repair Stations . | . . Recycling Units . | . . Scanalyzers . | . . Garrison Access . | . . Terminal Hacks 1 | . 1 Branch Access Points 1 | . 1 Fabricator Hacks . | . . Repair Station Hacks . | . . Recycling Unit Hacks . | . . Scanalyzer . | . . Garrison Access Hacks . | . . Unauthorized Hacks 3 | . 3 Terminals 3 | . 3 Botnet 2 | . 2 Operators 1 | . 1 Fabricators . | . . Repair Stations . | . . Recycling Units . | . . Scanalyzers . | . . Garrison Access . | . . Data Cores Recovered . | . . Used . | . . Hacking Detections 2 | . 2 Full Trace Events 1 | . 1 Feedback Events . | . . Feedback Blocked . | . . Robot Schematics Acquired . | . . Robots Built . | . . Authchips . | . . Time . | . . Total Robot Build Rating . | . . Part Schematics Acquired . | . . Parts Built . | . . Authchips . | . . Time . | . . Total Part Build Rating . | . . Part Studies Acquired . | . . Parts Repaired . | . . Time . | . . Parts Recycled . | . . Recycled Matter . | . . Retrieved Matter . | . . Retrieved Components . | . . Parts Scanalyzed . | . . Part Schematics Acquired . | . . Parts Damaged . | . . Bothacking | -11 -10 ------------ Run | Yrd Mat Used RIF Installer . | . . Robots Hacked . | . . Non-combat . | . . Combat . | . . Robot Hacks Applied . | . . Relay Couplers Released . | . . Fabnet Peak Effective % . | . . Robots Rewired . | . . Allies Hacked . | . . Hacks Repelled . | . . Allies | -11 -10 -------- Run | Yrd Mat Total Allies . | . . Largest Group . | . . Highest-Rated Group . | . . Highest-Rated Ally . | . . Total Orders . | . . Ally Attacks . | . . Total Damage . | . . Kills . | . . Allies Corrupted . | . . Allies Melted . | . . Intel | -11 -10 ------- Run | Yrd Mat Active Infowar (turns) . | . . Robot Analysis Total . | . . Derelict Logs Recovered . | . . Drone Launches . | . . Drone Recoveries . | . . Exploration | -11 -10 ------------- Run | Yrd Mat Turns Passed 360 | 46 314 Spaces Moved 198 | 38 160 Core 8 | 8 . Treads 16 | . 16 Legs . | . . Wheels 174 | 30 144 Hover . | . . Flight . | . . Fastest Speed 50 | 50 90 Average Speed 99 | 83 102 Slowest Speed 160 | 100 160 Overloaded Moves . | . . Propulsion Burnouts . | . . Robots Hopped . | . . Potential Cave-ins . | . . Cave-ins Triggered . | . . Exploration Rate (%) 23 | 2 45 Regions Visited 1 Branch Regions . Pre-discovered Areas . | . . Known Exits Taken . | . . Unknown Exits Taken 1 | 1 . Scrap Searched . | . . Spaces Dug . | . . Terrain Destroyed . | . . Melee . | . . Projectile . | . . AOE . | . . Terrain Rammed . | . . Walls Destroyed . | . . Machines Disabled . | . . Actions | -11 -10 --------- Run | Yrd Mat Total 284 | 52 232 Wait 18 | . 18 Move 197 | 37 160 Hop . | . . Pick Up 14 | 9 5 Fast Attach 1 | . 1 Attach 10 | 6 4 Detach . | . . Swap 3 | . 3 Drop . | . . Fire 39 | . 39 Melee . | . . Ram . | . . Kick . | . . Crush 2 | . 2 Escape Stasis . | . . Rewire . | . . Trap . | . . Miscellaneous . | . . Route ------- -11/Scrapyard -10/Materials (discovered 2 exits: *Min x2) History --------- Turn | Location | Event 21 | -11/Scrapyard | Discovered new exit (range 16) 47 | -11/Scrapyard | Entered Materials 180 | -10/Materials | Core integrity fell below 50% 213 | -10/Materials | Core integrity fell below 20% 218 | -10/Materials | Lost 4 parts (1p1n2w) 302 | -10/Materials | Identified exit to Mines 361 | -10/Materials | Destroyed by S-10 Pest with Light Assault Rifle Last Messages --------------- 00274_ Acquired 114 matter. 00282_ K-01 Serf cleans the Terminal. 00289_ K-01 Serf collects debris. 00302_ Connecting with Terminal... >>Trojan(Botnet) Trojan loaded successfully. Testing... Terminal linked with 1 system. Awaiting botnet instructions. >>Access(Branch) Found 2 branch access points: (36,37) Mines (45,54) Mines Map updated. 00308_ Connecting with Terminal... 00353_ Ion Engine destroyed. 00356_ S-10 Pest destroyed. 00356_ Switching to secondary target: S-10 Pest. 00359_ S-10 Pest destroyed. 00359_ Switching to secondary target: S-10 Pest. Map ----- +----------------------------------------------------+ | ?????????????????????????????????????????????????? | | ?????????????????????????????????????????????????? | | ????????????????????????????? T ???????????????? | | ??????????????????????????? ?????????????? | | ???????????????????????? /// ??????????? | | ?????????????????????????! /// ????????? | | ????????????????????????? // ??????? | | ?????????????????????????# ??????? | | ?????????????????????????# ?????? | | ?????????????????????????# ?????? | | ?????????????????????????# ?????? | | ?????????????????????##### ???????? | | ?????????????????????# #????????? | | ?????????????????????# #????????? | | ?????##?###??????????+ ^ +????????? | | ?????# ??????????# ? #????????? | | ?????# "" "???######## #### #????????? | | ?????# "Y """ ## # """# #????????? | | ?????# "" """ ## "# "# " #????????? | | ###### ## T# o |"# "" #????????? | | # """ ## "# > ""# "" #????????? | | "" # """ ## # !"# """ ??????? | | "" # """ ## # "# "" ###?????? | | "" # ## # ""?# """ #???????? | | =!####+###### ## ####= """ #???????? | | !%## #######+## @ %%* """ #???????? | | ####+##!"" k k s " #???????? | | %%[ == !T = u #???????? | | #+##+## #???????? | | ! =%%## ###########+###### #???????? | | * =*### #########?????????## ########???????? | | "T"=#?# # #??????????? #??????????????? | | """ #?# + "T" #??????????? #??????????????? | | ######?# # #??????????? #??????????????? | | ???????# #########??????????? #??????????????? | | ????#####+#####???????????????? ??????????????? | | ????# """ """ #???????????????? #?????????????? | | ????# """ """ #???????????????? > +?????????????? | | ????# """ """ #????????????????? #?????????????? | | ????# #????????????????? ???????????????? | | ????# %#??????????????????????????????????? | | ????# #??????????????????????????????????? | | ????# #??????????????????????????????????? | | ????# #??????????????????????????????????? | | ????###########??????????????????????????????????? | | ?????????????????????????????????????????????????? | | ?????????????????????????????????????????????????? | | ?????????????????????????????????????????????????? | | ?????????????????????????????????????????????????? | | ?????????????????????????????????????????????????? | +----------------------------------------------------+ Best States ------------- Heat Dissipation 35 Energy Generation 10 Energy Capacity 250 Matter Stores 300 Matter Capacity 300 Sight Range 16 Terrain Scan Density 10 Evasion (%) 50 Recoil Reduction 2 Item Schematics ----------------- None Robot Schematics ------------------ None Fabricated ------------ Nothing Repaired ---------- Nothing Studied --------- None Alien Tech Used ----------------- None Achievements -------------- None Challenges ------------ None Game ------ Seed DeflectorWardroneThruster Manual? 0 Play Time 00:04:45 Cumulative 69.4 hours Start 2025.12.10 @ 18:21:15 End 2025.12.10 @ 18:23:51 Sessions 1 Manual Loads 0 Difficulty Rogue Special Mode None Game No. 176 Rogue 176 Adventurer 0 Explorer 0 Win Type - Total 0 Types 0/0/0/0/0/0/0/0/0/0 Lore% 34 Gallery% 37 Achievement% 29 Wizard Run 0 Options --------- Layout 1 ASCII 0 Keyboard 0 Movement Numpad Keybinds 0 Fullscreen 2 Font 24/Smallcaps Map View 50x35 Zoom Use 0% Tactical HUD 1 Map Filters NONE Filters NONE Steam 1 RUN: d5c06cf5-2b6d-4c40-a4a5-c64bf0101878